bitfinex/quotes_SOLUSD_20240623
["timestamp","ask_amount","ask_price","bid_price","bid_amount"]
[1719131633635,34.8527,134.85,134.79,7.4188]
[1719131634430,7.4162,134.84,134.79,7.4188]
[1719131635134,27.4158,134.85,134.8,7.4183]
[1719131635332,34.8528,134.85,134.8,7.4183]
[1719131636842,34.8528,134.85,134.79,107.4187]
[1719131639424,27.4158,134.85,134.79,107.4187]
[1719131639720,7.437,134.84,134.79,107.4187]
[1719131641426,14.8532,134.84,134.79,107.4187]
[1719131644406,27.4158,134.85,134.8,7.4183]
[1719131644606,7.437,134.84,134.81,107.4178]
[1719131644805,7.437,134.84,134.81,100.0]
[1719131645012,7.4157,134.85,134.81,100.0]
[1719131645313,7.4157,134.85,134.79,107.4187]
[1719131645514,7.4163,134.84,134.79,107.4187]
[1719131647131,7.437,134.83,134.79,107.4187]
[1719131647519,7.4163,134.84,134.79,107.4187]
[1719131648427,7.437,134.84,134.79,107.4187]
[1719131649032,7.437,134.84,134.77,100.0]
[1719131649033,7.4162,134.84,134.77,100.0]
[1719131649218,7.4162,134.84,134.78,7.4189]
[1719131649415,7.437,134.83,134.78,7.4189]
[1719131650013,7.437,134.83,134.79,7.4189]
[1719131650528,7.4162,134.84,134.79,7.4189]
[1719131651430,7.437,134.83,134.79,7.4189]
[1719131664836,7.437,134.84,134.79,7.4189]
[1719131665141,7.437,134.84,134.8,7.4183]
[1719131665622,18.7062,134.88,134.81,7.4178]
[1719131665623,7.4151,134.86,134.81,7.4178]
[1719131665824,20.0,134.85,134.81,7.4178]
[1719131666135,7.437,134.84,134.81,7.4178]
[1719131666614,7.437,134.84,134.8,7.4182]
[1719131668132,7.437,134.84,134.81,0.39070514]
[1719131668724,14.8532,134.84,134.8,0.39078452]
[1719131669026,7.4162,134.84,134.8,0.39078452]
[1719131669337,7.437,134.83,134.8,0.39078452]
[1719131673251,7.437,134.83,134.8,0.61901337]
[1719131673745,14.8537,134.83,134.8,0.61901337]
[1719131678867,7.4167,134.83,134.8,0.61901337]
[1719131679041,14.8537,134.83,134.79,100.0]
[1719131679236,7.4167,134.83,134.79,100.0]
[1719131680343,14.8537,134.83,134.79,100.0]
[1719131680751,7.4167,134.83,134.79,100.0]
[1719131681659,14.8534,134.84,134.79,100.0]
[1719131683659,7.4164,134.84,134.79,107.4189]
[1719131684564,14.8538,134.83,134.78,7.4193]
[1719131685662,7.4168,134.83,134.78,7.4193]
[1719131685861,14.8538,134.83,134.78,7.4193]
[1719131686638,7.437,134.83,134.78,7.4193]
[1719131688254,7.4164,134.84,134.78,7.4193]
[1719131689056,7.437,134.83,134.78,7.4193]
[1719131689256,14.8538,134.83,134.78,7.4193]
[1719131689465,7.4168,134.83,134.78,7.4193]
[1719131690139,14.8538,134.83,134.78,7.4193]
[1719131692448,7.437,134.83,134.78,7.4193]
[1719131693668,23.0099,134.84,134.78,7.4193]
[1719131693865,7.437,134.83,134.78,7.4193]
[1719131695473,7.437,134.83,134.79,7.4189]
[1719131700371,7.437,134.83,134.78,7.4192]
[1719131701900,14.8537,134.83,134.78,7.4192]
[1719131702478,14.8537,134.83,134.77,100.0]
[1719131702479,14.8537,134.83,134.77,107.4198]
[1719131702650,7.4174,134.82,134.77,107.4198]
[1719131702851,7.4174,134.82,134.77,7.4198]
[1719131703552,14.8539,134.83,134.77,7.4198]
[1719131704153,14.8539,134.83,134.78,7.4194]
[1719131706978,14.8539,134.83,134.77,107.4198]
[1719131709492,7.4172,134.82,134.77,107.4198]
[1719131711095,7.4172,134.82,134.77,100.0]
[1719131712509,7.437,134.83,134.76,22.8451]
[1719131712806,14.8554,134.8,134.75,107.4209]
[1719131713500,7.437,134.8,134.75,107.4209]
[1719131714509,7.437,134.8,134.76,7.4204]
[1719131720907,21.6519,134.84,134.77,107.42]
[1719131721196,34.8538,134.83,134.77,107.42]
[1719131722507,7.4173,134.82,134.77,107.42]
[1719131722808,7.4179,134.81,134.77,100.0]
[1719131724211,7.4179,134.81,134.76,7.4205]
[1719131724720,7.437,134.8,134.76,7.4205]
[1719131725822,7.437,134.81,134.76,7.4205]
[1719131728718,7.437,134.8,134.76,7.4205]
[1719131730121,7.437,134.79,134.73,116.3293]
[1719131730306,7.437,134.79,134.74,7.4211]
[1719131734303,7.437,134.79,134.75,7.421]
[1719131736228,7.437,134.79,134.74,7.4215]
[1719131736425,7.437,134.79,134.72,37.60471985]
[1719131736906,20.0,134.78,134.72,45.02741985]
[1719131737231,7.4204,134.77,134.72,37.60471985]
[1719131737436,7.437,134.76,134.72,37.60471985]
[1719131738440,7.437,134.77,134.72,45.02741985]
[1719131738630,7.437,134.77,134.73,7.4222]
[1719131740637,20.0,134.78,134.73,7.4222]
[1719131741646,7.437,134.77,134.73,7.4222]
[1719131743806,7.437,134.76,134.72,45.02721985]
[1719131744207,7.437,134.76,134.72,37.60471985]
[1719131747052,7.437,134.75,134.72,37.60471985]
[1719131750257,7.437,134.75,134.72,45.02741985]
[1719131751760,15.8524,134.76,134.72,45.02741985]
[1719131752163,7.437,134.75,134.72,45.02741985]
[1719131752833,27.4197,134.78,134.72,45.02741985]
[1719131753562,14.857,134.77,134.72,45.02741985]
[1719131754053,7.42,134.77,134.72,45.02741985]
[1719131754661,7.437,134.76,134.72,45.02741985]
[1719131755027,7.437,134.76,134.72,37.60471985]
[1719131756646,7.42,134.77,134.72,45.02741985]
[1719131756998,7.42,134.77,134.73,1.48188605]
[1719131757669,7.437,134.76,134.73,1.48188605]
[1719131760330,7.42,134.77,134.73,1.48188605]
[1719131760531,7.437,134.76,134.73,1.48188605]
[1719131761970,7.437,134.76,134.72,37.60471985]
[1719131765192,7.437,134.75,134.72,37.60471985]
[1719131766267,7.437,134.77,134.72,37.60471985]
[1719131766978,7.437,134.75,134.71,37.78733196]
[1719131767445,7.437,134.75,134.71,45.21053196]
[1719131768388,14.8572,134.77,134.71,145.21053196]
[1719131768559,7.437,134.76,134.71,145.21053196]
[1719131773683,7.437,134.76,134.72,7.4226]
[1719131774874,7.437,134.76,134.72,45.02731985]
[1719131776794,7.4202,134.77,134.72,45.02731985]
[1719131777262,7.437,134.76,134.72,45.02731985]
[1719131777977,7.4202,134.77,134.72,45.02731985]
[1719131778165,7.4207,134.76,134.71,45.21053196]
[1719131778367,7.437,134.75,134.71,45.21053196]
[1719131780585,7.437,134.74,134.71,37.78733196]
[1719131780770,7.437,134.74,134.68,25.211]
[1719131780771,7.437,134.74,134.69,37.59427559]
[1719131781295,7.437,134.74,134.69,45.01847559]
[1719131783482,14.8578,134.76,134.7,7.4237]
[1719131783684,7.437,134.74,134.71,45.21053196]
[1719131784591,7.437,134.75,134.71,45.21053196]
[1719131784796,7.4208,134.76,134.71,45.21053196]
[1719131784797,7.437,134.73,134.71,37.78733196]
[1719131787572,7.437,134.73,134.7,37.74284071]
[1719131796477,33.8877,134.77,134.72,37.60471985]
[1719131796679,20.0,134.76,134.72,37.60471985]
[1719131797092,7.4214,134.75,134.72,37.60471985]
[1719131797610,7.437,134.74,134.72,37.60471985]
[1719131798502,7.4218,134.74,134.72,37.60471985]
[1719131798709,14.8588,134.74,134.7,37.74284071]
[1719131799905,7.4218,134.74,134.7,37.74284071]
[1719131800195,7.4213,134.75,134.7,37.74284071]
[1719131800409,7.437,134.74,134.7,37.74284071]
[1719131801001,7.4213,134.75,134.7,37.74284071]
[1719131801298,7.437,134.74,134.7,37.74284071]
[1719131803108,14.8588,134.74,134.7,37.74284071]
[1719131805102,7.4218,134.74,134.7,37.74284071]
[1719131805308,7.437,134.74,134.7,37.74284071]
[1719131806105,7.4213,134.75,134.7,37.74284071]
[1719131806313,7.437,134.74,134.7,37.74284071]
[1719131807105,7.4217,134.74,134.7,37.74284071]
[1719131807518,14.8587,134.74,134.7,37.74284071]
[1719131808013,7.4213,134.75,134.71,100.0]
[1719131808218,7.4213,134.75,134.72,37.60471985]
[1719131808578,7.437,134.74,134.72,37.60471985]
[1719131809712,18.5473,134.79,134.73,100.0]
[1719131809891,7.4203,134.77,134.73,100.0]
[1719131826215,20.0,134.78,134.72,37.60471985]
[1719131826516,7.4217,134.74,134.72,37.60471985]
[1719131826904,7.4213,134.75,134.72,37.60471985]
[1719131830623,14.8583,134.75,134.72,37.60471985]
[1719131831424,7.4213,134.75,134.72,37.60471985]
[1719131831724,14.8583,134.75,134.72,37.60471985]
[1719131831911,7.4218,134.74,134.7,37.74284071]
[1719131834732,14.8583,134.75,134.7,37.74284071]
[1719131837326,14.8583,134.75,134.7,45.16654071]
[1719131838339,7.437,134.75,134.7,45.16654071]
[1719131839016,14.8585,134.75,134.7,37.74284071]
[1719131841141,14.8585,134.75,134.7,45.16654071]
[1719131847546,7.437,134.75,134.7,45.16654071]
[1719131851149,14.8582,134.75,134.7,37.74284071]
[1719131852143,14.8582,134.75,134.7,45.16674071]
[1719131853714,14.8582,134.75,134.7,37.74284071]
[1719131855744,7.437,134.73,134.7,37.74284071]
[1719131857346,14.8583,134.75,134.7,37.74284071]
[1719131862861,14.8583,134.75,134.7,45.16654071]
[1719131864758,7.437,134.75,134.7,45.16654071]
[1719131866756,7.437,134.75,134.71,7.4232]
[1719131866947,7.437,134.75,134.72,37.60471985]
[1719131868561,7.437,134.75,134.71,37.78733196]
[1719131874258,14.8582,134.75,134.71,37.78733196]
[1719131877955,14.8582,134.75,134.7,37.74284071]
[1719131883153,14.8582,134.75,134.71,1.32450743]
[1719131883568,14.8582,134.75,134.71,1.32462085]
[1719131883772,14.8582,134.75,134.72,37.60471985]
[1719131884068,14.8582,134.75,134.7,37.74284071]
[1719131884757,14.8582,134.75,134.71,0.96300897]
[1719131885256,7.437,134.73,134.72,37.60471985]
[1719131885756,7.437,134.73,134.7,37.74284071]
[1719131888169,7.437,134.73,134.71,1.48246354]
[1719131889582,7.437,134.73,134.7,37.74284071]
[1719131895094,14.8593,134.73,134.7,37.74284071]
[1719131895264,7.4231,134.72,134.68,37.16339861]
[1719131896367,14.8593,134.73,134.68,37.16339861]
[1719131898281,7.4228,134.72,134.68,37.16339861]
[1719131898582,27.4228,134.72,134.67,37.01868709]
[1719131898780,27.4228,134.72,134.67,44.44408709]
[1719131901997,27.4228,134.72,134.67,37.01868709]
[1719131903490,7.4233,134.71,134.66,7.4259]
[1719131904371,7.4233,134.71,134.65,129.6638]
[1719131904693,7.4233,134.71,134.65,122.2374]
[1719131906108,7.4233,134.71,134.66,7.4259]
[1719131910577,7.4233,134.71,134.65,129.6638]
[1719131910996,7.4239,134.7,134.65,129.6638]
[1719131911495,7.4235,134.71,134.65,129.6638]
[1719131912100,7.4235,134.71,134.65,123.2198]
[1719131912392,7.4235,134.71,134.66,7.4259]
[1719131913788,20.0,134.72,134.67,107.4255]
[1719131913995,30.5705,134.73,134.67,107.4255]
[1719131914493,30.5705,134.73,134.68,7.4249]
[1719131914795,30.5705,134.73,134.69,107.4243]
[1719131914796,7.437,134.73,134.69,107.4243]
[1719131915185,14.8638,134.74,134.69,107.4243]
[1719131915385,14.8638,134.74,134.69,100.0]
[1719131917601,7.442,134.73,134.69,107.4244]
[1719131918600,7.442,134.74,134.69,107.4244]
[1719131919101,7.4213,134.75,134.69,107.4244]
[1719131919397,7.442,134.74,134.69,107.4244]
[1719131921501,7.442,134.74,134.7,7.4238]
[1719131923702,36.2816,134.76,134.7,7.4238]
[1719131923902,7.442,134.74,134.7,7.4238]
[1719131925006,20.0,134.75,134.7,7.4238]
[1719131925202,7.442,134.74,134.7,7.4238]
[1719131927685,20.0,134.75,134.71,7.4231]
[1719131927885,74.18613642,134.89,134.71,107.4231]
[1719131927886,7.4203,134.77,134.71,107.4231]
[1719131928098,20.0,134.76,134.72,8.90467219]
[1719131928807,7.442,134.76,134.72,8.90467219]
[1719131929309,7.442,134.76,134.72,1.48207219]
[1719131934916,7.442,134.76,134.72,8.90477219]
[1719131935925,7.442,134.77,134.72,8.90477219]
[1719131936589,14.8622,134.77,134.72,8.90477219]
[1719131938193,14.8622,134.77,134.73,100.0]
[1719131938399,7.442,134.77,134.74,1.4818522]
[1719131939394,7.442,134.76,134.71,107.4231]
[1719131939593,14.8626,134.76,134.71,107.4231]
[1719131940514,7.442,134.76,134.71,107.4231]
[1719131942499,7.442,134.76,134.72,7.4226]
[1719131942709,7.442,134.77,134.72,7.4226]
[1719131944717,7.442,134.76,134.72,7.4226]
[1719131946013,7.4197,134.78,134.72,7.4226]
[1719131946210,7.442,134.77,134.72,7.4226]
[1719131946616,7.442,134.77,134.73,7.4222]
[1719131947417,7.442,134.78,134.73,7.4222]
[1719131951105,7.4195,134.78,134.73,7.4222]
[1719131951307,7.442,134.77,134.72,7.4225]
[1719131952009,14.8621,134.77,134.72,7.4225]
[1719131952527,7.442,134.77,134.72,7.4225]
[1719131953799,7.442,134.77,134.73,7.4222]
[1719131954613,7.442,134.78,134.74,7.4216]
[1719131958128,7.442,134.78,134.73,7.422]
[1719131960629,7.442,134.78,134.74,7.4216]
[1719131965616,7.4191,134.79,134.74,7.4216]
[1719131966436,7.442,134.78,134.74,7.4216]
[1719131967334,7.4191,134.79,134.74,7.4216]
[1719131967521,7.5886,134.8,134.74,7.4216]
[1719131967715,20.0,134.79,134.74,7.4216]
[1719131968626,7.442,134.78,134.74,7.4216]
[1719131968828,20.0,134.79,134.74,7.4216]
[1719131969632,7.442,134.78,134.74,7.4216]
[1719131973050,27.4189,134.79,134.74,7.4216]
[1719131973234,7.442,134.78,134.74,7.4216]
[1719131977754,7.442,134.78,134.73,107.4221]
[1719131977940,27.4189,134.79,134.73,107.4221]
[1719131978252,7.442,134.78,134.73,107.4221]
[1719131980448,27.4189,134.79,134.73,107.4221]
[1719131980764,7.442,134.78,134.74,7.4216]
[1719131982061,7.4181,134.81,134.76,7.4205]
[1719131982233,7.4181,134.81,134.75,7.4208]
[1719131982624,7.4174,134.82,134.76,23.5518]
[1719131982826,7.4174,134.82,134.77,7.42]
[1719131983135,14.8594,134.82,134.77,7.42]
[1719131983869,14.8594,134.82,134.76,23.5516]
[1719131987537,14.8594,134.82,134.77,100.0]
[1719131990161,7.4174,134.82,134.77,100.0]
[1719131990638,14.8594,134.82,134.77,100.0]
[1719131991148,7.4174,134.82,134.77,100.0]
[1719131991533,14.8594,134.82,134.77,100.0]
[1719131994842,7.4174,134.82,134.77,100.0]
[1719131995966,14.8594,134.82,134.77,100.0]
[1719131996163,7.4174,134.82,134.77,100.0]
[1719131997083,14.8594,134.82,134.77,100.0]
[1719131997466,7.4174,134.82,134.77,107.4199]
[1719131997980,7.4168,134.83,134.77,107.4199]
[1719131998159,7.442,134.82,134.77,107.4199]
[1719131998880,7.4168,134.83,134.77,107.4199]
[1719131999483,7.442,134.82,134.77,107.4199]
[1719131999803,7.4168,134.83,134.77,107.4199]
[1719132000379,7.442,134.82,134.77,107.4199]
[1719132002171,7.4168,134.83,134.78,7.4194]
[1719132002386,7.442,134.82,134.78,7.4194]
[1719132003087,7.4168,134.83,134.78,7.4194]
[1719132003261,7.442,134.82,134.78,7.4194]
[1719132003460,7.442,134.83,134.78,7.4194]
[1719132004170,14.8587,134.83,134.78,7.4194]
[1719132004566,7.442,134.82,134.78,7.4194]
[1719132004763,7.442,134.83,134.78,7.4194]
[1719132004981,7.4164,134.84,134.78,7.4194]
[1719132006466,7.442,134.83,134.78,7.4194]
[1719132006774,7.4164,134.84,134.78,7.4194]
[1719132007670,7.442,134.83,134.78,7.4194]
[1719132013384,7.4164,134.84,134.79,7.4189]
[1719132013787,7.442,134.83,134.79,7.4189]
[1719132017104,7.442,134.83,134.78,7.4192]
[1719132019304,7.442,134.83,134.79,7.4189]
[1719132023614,16.0216,134.88,134.79,7.4189]
[1719132023615,14.8578,134.85,134.79,7.4189]
[1719132023904,7.442,134.83,134.79,7.4189]
[1719132052319,27.4162,134.84,134.77,100.0]
[1719132052516,27.4167,134.84,134.77,7.4196]
[1719132052720,7.7568,134.83,134.77,7.4196]
[1719132053698,7.442,134.82,134.77,7.4196]
[1719132062926,7.442,134.82,134.78,7.4193]
[1719132063133,20.0,134.84,134.8,7.4179]
[1719132063433,7.442,134.83,134.8,7.4179]
[1719132063607,7.442,134.83,134.8,7.4183]
[1719132064319,7.442,134.84,134.8,7.4183]
[1719132064838,7.442,134.84,134.79,7.4188]
[1719132068111,7.4162,134.84,134.78,7.4193]
[1719132068316,7.442,134.83,134.78,7.4193]
[1719132069540,14.8588,134.83,134.78,7.4193]
[1719132070844,7.4168,134.83,134.78,7.4193]
[1719132071536,7.442,134.83,134.78,7.4193]
[1719132073646,7.442,134.83,134.79,7.4188]
[1719132084549,7.4163,134.84,134.79,7.4188]
[1719132084730,7.612,134.83,134.79,7.4188]
[1719132086555,0.17,134.83,134.79,7.4188]
[1719132086857,7.612,134.83,134.79,7.4188]
[1719132087040,0.17,134.83,134.79,7.4188]
[1719132087236,7.442,134.83,134.79,7.4188]
[1719132088354,7.782,134.84,134.79,7.4188]
[1719132088658,0.17,134.83,134.79,7.4188]
[1719132095067,0.34,134.83,134.79,7.4188]
[1719132100153,7.782,134.83,134.79,7.4188]
[1719132105371,34.8596,134.82,134.76,23.5518]
[1719132105577,0.17,134.81,134.76,23.5518]
[1719132105775,0.34,134.81,134.76,23.5518]
[1719132108152,7.442,134.8,134.76,16.1313]
[1719132123083,7.782,134.81,134.76,23.5517]
[1719132125182,15.1998,134.81,134.76,23.5517]
[1719132125365,7.7578,134.81,134.76,16.1313]
[1719132125568,7.442,134.8,134.76,16.1313]
[1719132126185,17.94274218,134.82,134.76,16.1313]
[1719132126482,0.17,134.83,134.76,16.1313]
[1719132126667,52.442,134.84,134.76,16.1313]
[1719132128100,7.442,134.8,134.76,16.1313]
[1719132141598,7.442,134.8,134.75,13.6894]
[1719132141599,14.8604,134.8,134.75,13.6894]
[1719132142198,14.8604,134.8,134.74,7.4214]
[1719132152983,7.442,134.78,134.73,24.0596]
[1719132154617,7.442,134.78,134.74,7.4216]
[1719132159114,7.442,134.77,134.73,16.6375]
[1719132169106,7.441,134.77,134.73,16.6375]
[1719132175041,7.441,134.77,134.73,17.7056453]
[1719132176049,14.861,134.77,134.73,17.7056453]
[1719132181747,7.441,134.77,134.73,17.7056453]
[1719132181952,7.441,134.8,134.74,1.06973425]
[1719132182252,34.2866,134.81,134.74,1.06973425]
[1719132182253,7.441,134.78,134.74,1.06973425]
[1719132182642,7.4193,134.79,134.74,1.06973425]
[1719132182845,7.441,134.77,134.74,1.06973425]
[1719132184949,14.8611,134.77,134.74,1.06973425]
[1719132185251,7.4207,134.76,134.73,16.6375]
[1719132186045,7.4211,134.75,134.73,16.6375]
[1719132186430,7.4208,134.76,134.73,16.6375]
[1719132188852,7.4212,134.75,134.73,16.6375]
[1719132189237,7.4208,134.76,134.73,16.6375]
[1719132191149,14.8612,134.77,134.73,16.6375]
[1719132198842,7.4207,134.76,134.73,16.6375]
[1719132200761,14.8612,134.77,134.73,16.6375]
[1719132217349,7.4206,134.76,134.73,16.6375]
[1719132218056,14.8612,134.77,134.73,16.6375]
[1719132219579,14.8612,134.77,134.73,18.72938626]
[1719132225677,14.8612,134.77,134.73,19.13757065]
[1719132227559,14.8612,134.77,134.73,20.3645607]
[1719132230678,7.4206,134.76,134.73,20.3645607]
[1719132235481,14.8611,134.77,134.73,20.3645607]
[1719132242890,18.5473,134.8,134.74,11.14878028]
[1719132242891,7.4186,134.8,134.74,11.14878028]
[1719132243775,7.441,134.78,134.74,11.14878028]
[1719132244287,7.441,134.78,134.74,3.72718028]
[1719132244586,7.441,134.78,134.73,124.0595]
[1719132244587,7.441,134.78,134.73,24.0595]
[1719132244796,7.441,134.78,134.73,16.6375]
[1719132244797,7.441,134.77,134.73,16.6375]
[1719132246292,7.441,134.77,134.73,24.0596]
[1719132247194,7.441,134.78,134.73,24.0596]
[1719132249901,7.441,134.78,134.74,7.4216]
[1719132250192,7.441,134.77,134.73,24.0597]
[1719132251205,7.4196,134.78,134.73,24.0597]
[1719132251404,7.441,134.77,134.73,24.0597]
[1719132252603,7.441,134.78,134.73,24.0597]
[1719132255401,7.441,134.78,134.74,7.4216]
[1719132260823,7.4196,134.78,134.73,24.0595]
[1719132261002,0.17,134.79,134.69,22.241]
[1719132261003,7.4212,134.75,134.69,22.241]
[1719132261203,7.4212,134.75,134.69,29.6651]
[1719132261520,27.4217,134.74,134.69,15.9944]
[1719132261717,7.4217,134.74,134.69,15.9944]
[1719132262024,7.441,134.72,134.69,15.9944]
[1719132262505,20.0,134.73,134.69,15.9944]
[1719132263123,7.441,134.72,134.69,15.9944]
[1719132295948,27.4222,134.73,134.69,15.9944]
[1719132296248,7.441,134.72,134.69,15.9944]
[1719132300635,0.17,134.75,134.69,15.9944]
[1719132300935,7.441,134.74,134.69,15.9944]
[1719132301142,7.441,134.72,134.69,15.9944]
[1719132308056,7.441,134.73,134.69,15.9944]
[1719132308253,7.441,134.73,134.7,0.89883446]
[1719132310971,7.441,134.73,134.7,3.63686716]
[1719132312073,7.441,134.73,134.71,3.64901317]
[1719132312246,27.4213,134.75,134.7,3.64901318]
[1719132312440,7.441,134.74,134.7,3.64901318]
[1719132312645,7.441,134.74,134.71,3.65003681]
[1719132313074,7.441,134.74,134.7,4.16283029]
[1719132313279,7.441,134.74,134.71,4.16276941]
[1719132314273,7.441,134.74,134.7,4.16276941]
[1719132314475,7.441,134.74,134.71,4.1627694]
[1719132315260,7.4205,134.77,134.71,118.0756694]
[1719132315461,7.4205,134.77,134.72,22.3539]
[1719132315753,7.4195,134.78,134.73,11.5843696]
[1719132315952,7.441,134.77,134.74,4.16220736]
[1719132317368,7.441,134.77,134.73,4.16581722]
[1719132317560,7.441,134.77,134.74,4.16552308]
[1719132317758,7.441,134.76,134.74,4.16552308]
[1719132318579,7.441,134.76,134.73,4.16626557]
[1719132318751,7.441,134.76,134.74,4.16595636]
[1719132319675,7.441,134.77,134.74,4.16595636]
[1719132320574,7.4197,134.78,134.73,4.16595636]
[1719132320778,7.4197,134.78,134.74,4.16597005]
[1719132321860,7.441,134.77,134.74,4.16597005]
[1719132323376,7.441,134.77,134.73,7.4222]
[1719132323564,7.4197,134.78,134.73,7.4222]
[1719132323874,7.441,134.77,134.73,7.4222]
[1719132326077,7.441,134.77,134.72,29.7764]
[1719132329765,7.4197,134.78,134.72,29.7764]
[1719132329971,7.441,134.77,134.72,29.7764]
[1719132330270,7.441,134.77,134.73,0.43528517]
[1719132332391,7.441,134.77,134.73,101.91927734]
[1719132332584,7.419,134.79,134.73,109.34147734]
[1719132332759,7.441,134.78,134.73,109.34147734]
[1719132334280,7.419,134.79,134.73,109.34147734]
[1719132334587,7.441,134.78,134.73,109.34147734]
[1719132337486,7.419,134.79,134.73,109.34147734]
[1719132337786,7.441,134.78,134.73,107.4222]
[1719132341798,7.441,134.78,134.74,7.4216]
[1719132352305,7.4199,134.78,134.72,22.3539]
[1719132352605,7.4199,134.78,134.72,29.7763]
[1719132352807,7.441,134.77,134.73,7.422]
[1719132353011,7.441,134.77,134.74,7.4216]
[1719132353699,7.4191,134.79,134.74,7.4216]
[1719132354914,7.441,134.78,134.74,7.4216]
[1719132356620,14.8596,134.8,134.74,7.4216]
[1719132361625,7.441,134.78,134.74,7.4216]
[1719132364504,7.441,134.78,134.73,107.422]
[1719132368237,7.419,134.79,134.73,107.422]
[1719132368621,7.441,134.78,134.73,107.422]
[1719132369003,7.419,134.79,134.73,107.422]
[1719132369826,7.441,134.78,134.73,107.422]
[1719132371626,14.8596,134.8,134.74,7.4214]
[1719132371831,14.8596,134.8,134.75,7.4211]
[1719132372509,14.8596,134.8,134.74,7.4214]
[1719132373029,14.8596,134.8,134.75,1.48210777]
[1719132373820,7.441,134.78,134.75,1.48210777]
[1719132376220,7.4189,134.79,134.75,1.48210777]
[1719132377735,7.441,134.78,134.75,1.48210777]
[1719132380830,7.4189,134.79,134.75,1.48210777]
[1719132381016,7.4189,134.79,134.73,107.422]
[1719132381215,14.8605,134.78,134.73,107.422]
[1719132382937,7.441,134.78,134.73,107.422]
[1719132383436,7.4191,134.79,134.73,107.422]
[1719132383638,7.441,134.78,134.73,107.422]
[1719132385239,14.8606,134.78,134.73,107.422]
[1719132386535,7.441,134.78,134.73,107.422]
[1719132387249,7.441,134.78,134.74,7.4217]
[1719132388938,7.4191,134.79,134.74,7.4217]
[1719132389439,7.441,134.79,134.74,7.4217]
[1719132391326,20.0,134.78,134.72,22.3539]
[1719132391726,7.4206,134.76,134.72,22.3539]
[1719132391929,27.441,134.78,134.73,100.0]
[1719132392230,20.0,134.78,134.73,100.0]
[1719132392421,7.441,134.79,134.74,7.4213]
[1719132393727,7.441,134.79,134.75,7.421]
[1719132398940,7.441,134.79,134.75,107.421]
[1719132399145,7.441,134.8,134.76,16.295]
[1719132399843,7.441,134.8,134.76,23.7155]
[1719132400046,7.441,134.8,134.76,16.295]
[1719132418874,7.441,134.8,134.76,23.7155]
[1719132420076,7.441,134.8,134.76,16.295]
[1719132422592,7.441,134.79,134.76,16.295]
[1719132425491,7.441,134.8,134.76,16.295]
[1719132430399,14.8595,134.8,134.76,16.295]
[1719132430692,7.441,134.8,134.76,16.295]
[1719132431198,7.4189,134.79,134.76,16.295]
[1719132431691,14.8596,134.8,134.76,16.295]
[1719132433499,7.441,134.8,134.76,16.295]
[1719132433881,7.419,134.79,134.73,107.4217]
[1719132434179,7.4195,134.78,134.72,30.0058]
[1719132435499,7.5891,134.79,134.73,7.4221]
[1719132436171,7.441,134.8,134.73,100.0]
[1719132436388,20.0,134.79,134.73,100.0]
[1719132436671,27.4189,134.79,134.73,107.422]